Cogmind - Beta 11.1 @@@ ROGUE MODE // 2022.09.07 @ 20:19:10 Player: Coronach Result: Self-destructed Performance ------------- Evolutions (2) 1000 Regions Visited (6) 1200 Robots Destroyed (62) 310 Value Destroyed (1589) 1589 Prototype IDs (31) 620 Alien Tech Used (0) 0 Bonus (367) 367 TOTAL SCORE: 5086 Bonus ------- Follower Combat Kills 105 Aligned with FarCom 300 Friendly Fire -38 Cogmind --------- Core Integrity 434/550 Matter 300/300 Energy 88/160 System Corruption 9% Temperature Cool (53) Movement Rolling (130) Ox2 Location -8/Storage Parts ------- > --- POWER (1) -------- Light Nuclear Core > --- PROPULSION (2) --- Compact Wheel Compact Wheel > --- UTILITY (6) ------ Huge Storage Unit Gravity Neutralizer Utility Shielding Medium Armor Plating Medium Armor Plating PSU Rigger > --- WEAPON (2) ------- Heavy EM Pulse Gun EM Pulse Cannon > --- INVENTORY (25) --- Light Nuclear Core Compact Wheel Compact Wheel Advanced Heat Sink Huge Storage Unit High-capacity Battery (250) High-capacity Matter Pod (200) Sensor Array Medium Armor Plating Hardened Medium Armor Plating Authchip [Processor] Advanced Beam Rifle Advanced Beam Rifle Cooled Plasma Cannon Advanced EMP Blaster Improved Grenade Launcher Plasma Cutter Plasma Cutter Katana Blade Trap Blade Trap Blade Trap Peak State ------------ > --- POWER ------------ Light Nuclear Core > --- PROPULSION ------- Compact Wheel Compact Wheel > --- UTILITY ---------- Huge Storage Unit Gravity Neutralizer Utility Shielding Medium Armor Plating Medium Armor Plating PSU Rigger > --- WEAPON ----------- EM Pulse Cannon Cooled Plasma Cannon > --- INVENTORY -------- Ion Engine Ion Engine Light Nuclear Core Light Nuclear Core Compact Wheel Compact Wheel Advanced Heat Sink Huge Storage Unit High-capacity Battery High-capacity Matter Pod Sensor Array Medium Armor Plating Hardened Medium Armor Plating Authchip [Processor] Heavy EM Pulse Gun Advanced Beam Rifle Advanced Beam Rifle Advanced EMP Blaster Advanced EMP Blaster Improved Grenade Launcher Plasma Cutter Katana Blade Trap Blade Trap Blade Trap [Rating: 39] Favorites ----------- Power Ion Engine Engine Ion Engine Power Core Light Nuclear Core Propulsion Compact Wheel Treads Light Treads Leg Improved Aluminum Leg Wheel Compact Wheel Hover Unit Backup Propulsion I Utility Sensor Array Device Sensor Array Storage Huge Storage Unit Processor Machine Analyzer Hackware Hacking Suite Protection Heavy Armor Plating Weapon Advanced Beam Cannon Energy Gun Advanced Beam Rifle Energy Cannon Advanced Beam Cannon Ballistic Gun Light Assault Rifle Launcher Grenade Launcher Special Weapon Plasma Cutter Slashing Weapon Katana Build | -11 -10 -10 -10 -9 -8 -8 ------- Run | Scr Mat Min Exi Min Mat Sto Slots Evolved 4 | . . . . . 4 . Power . | . . . . . . . Propulsion . | . . . . . . . Utility 4 | . . . . . 4 . Weapon . | . . . . . . . Parts Attached 111 | 4 12 14 1 1 45 34 Power 7 | . 2 2 . . 2 1 Engine 4 | . 1 1 . . 2 . Core 3 | . 1 1 . . . 1 Reactor . | . . . . . . . Propulsion 13 | 2 2 1 . 1 5 2 Treads 3 | . 1 1 . . 1 . Leg 2 | . . . . 1 1 . Wheel 8 | 2 1 . . . 3 2 Hover . | . . . . . . . Flight . | . . . . . . . Utility 30 | 1 1 9 1 . 9 9 Device 16 | 1 1 5 . . 4 5 Storage 3 | . . 1 1 . 1 . Processor 2 | . . . . . 2 . Hackware 1 | . . . . . . 1 Protection 8 | . . 3 . . 2 3 Artifact . | . . . . . . . Weapon 61 | 1 7 2 . . 29 22 Energy Gun 18 | . 2 . . . 8 8 Energy Cannon 13 | . 2 . . . 7 4 Ballistic Gun 4 | 1 2 . . . . 1 Ballistic Cannon . | . . . . . . . Launcher 3 | . . 1 . . 1 1 Special Weapon 17 | . 1 1 . . 10 5 Impact Weapon . | . . . . . . . Slashing Weapon 6 | . . . . . 3 3 Piercing Weapon . | . . . . . . . Special Melee Weapon . | . . . . . . . Unidentified Prototypes 8 | . 1 . . . 3 4 Parts Lost 13 | . 5 4 . . 1 3 Power 2 | . 1 1 . . . . Propulsion 4 | . 2 2 . . . . Utility 4 | . . . . . 1 3 Weapon 3 | . 2 1 . . . . Highest Loss Streak 5 | . 5 4 . . 1 3 To Critical Strikes . | . . . . . . . Average Slot Usage (%) 90 | . 98 90 85 97 85 93 Engine 9 | . 6 7 14 14 8 5 Core 2 | . 6 6 . . . 3 Treads 8 | . 10 13 14 14 1 . Leg 1 | . . . . 11 1 . Wheel 9 | . 16 6 . . 14 18 Device 11 | . 14 11 14 14 9 10 Storage 11 | . 14 14 14 14 9 9 Processor 4 | . . . . . 15 7 Protection 5 | . . 2 . . 6 17 Energy Gun 2 | . 8 . . . 4 5 Energy Cannon 9 | . 1 20 14 14 5 3 Ballistic Gun 1 | . 17 . . . . . Launcher 5 | . . 5 14 14 . 1 Special Weapon 2 | . . 2 . . 7 4 Naked Turns . | . . . . . . . Heaviest Build 116 | 15 19 57 53 23 108 116 Greatest Support 44 | 32 32 20 20 20 32 44 Greatest Overweight (x) 5 | . 1 5 2 1 3 3 Average Overweight (x) 1 | . . 3 1 1 2 2 Largest Inventory Capacity 25 | 8 8 20 20 10 25 25 Average Capacity 16 | 8 8 18 11 10 21 25 Most Carried 25 | 6 8 13 10 10 25 25 Average Carried 14 | 5 6 9 9 10 18 24 Final Capacity 25 | 8 8 20 10 10 25 25 Final Carried 24 | 6 8 9 10 10 24 22 Class Distribution -------------------- 78% | Mutant 19% | Scavenger-Mutant Dominant Class ---------------- Mutant | -10/Materials Mutant | -10/Mines Mutant | -10/Exiles Mutant | -9/Mines Scavenger-Mutant | -8/Materials Mutant | -8/Storage Resources | -11 -10 -10 -10 -9 -8 -8 ----------- Run | Scr Mat Min Exi Min Mat Sto Matter Collected 1776 | 276 404 150 58 10 445 433 Remotely . | . . . . . . . Salvage Created 2898 | 70 440 177 . 73 1183 955 Parts 126 | 6 21 13 . 3 51 32 Haulers Intercepted 7 | . 2 . . . 4 1 Recyclers Shooed 6 | . . . . . 4 2 Parts Field Recycled . | . . . . . . . Retrieved Matter . | . . . . . . . Parts Self-Destructed . | . . . . . . . Prevented . | . . . . . . . Kills | -11 -10 -10 -10 -9 -8 -8 ------- Run | Scr Mat Min Exi Min Mat Sto Combat Hostiles Destroyed 35 | . 10 6 . . 10 9 Melee 1 | . . . . . . 1 Guns 23 | . 10 . . . 9 4 Cannons 9 | . . 6 . . 1 2 Classes Destroyed 12 | 2 4 1 . 1 2 2 Worker 1 | . . . . 1 . . Tunneler 1 | 1 . . . . . . Hauler 7 | . 2 . . . 4 1 Recycler 11 | 1 . . . 1 4 5 Watcher 6 | . 1 . . . 3 2 Swarmer 6 | . 3 3 . . . . Grunt 23 | . 7 2 . . 9 5 Brawler 1 | . . . . . . 1 Duelist 1 | . . . . . . 1 Sentry 3 | . . . . . 1 2 Demolisher 1 | . . 1 . . . . Zionite 1 | . . . . . 1 . Best Kill Streak 8 | 2 3 3 . 2 3 8 Combat Bots Only 5 | . 3 3 . . 3 5 Max Kills in Single Turn 1 | 1 1 1 . 1 1 1 Gunslinging . | . . . . . . . Exploded . | . . . . . . . Melee 1 | . . . . . . 1 Uniques/NPCs Destroyed . | . . . . . . . Combat | -11 -10 -10 -10 -9 -8 -8 -------- Run | Scr Mat Min Exi Min Mat Sto Damage Taken 2493 | . 603 563 . . 540 787 Core 335 | . 83 136 . . 69 47 Absorbed by Shields . | . . . . . . . Redirected to Shielding 5 | . . . . . . 5 Core Remaining (%) 56 | 100 . . . 12 . . Volleys Fired 221 | 6 51 13 . 4 89 58 Largest 2 | 2 2 2 . 1 2 2 Hottest 136 | 40 136 136 . 68 122 124 Shots Fired 336 | 12 95 25 . 4 112 88 Gun 199 | 12 89 . . . 50 48 Cannon 100 | . 4 25 . 4 41 26 Launcher . | . . . . . . . Special 37 | . 2 . . . 21 14 Kinetic 81 | 12 69 . . . . . Thermal 191 | . 26 25 . 4 85 51 Explosive . | . . . . . . . Electromagnetic 64 | . . . . . 27 37 Robot Hit Streak 18 | 4 11 6 . 8 18 7 Robot Miss Streak 4 | 2 3 3 . . 4 3 Penetration Max . | . . . . . . . Secondary Targets 4 | . 4 . . . . . Max Gunslinging Chain 1 | . 1 . . . . . Shots Hit Robots 216 | 7 66 17 . 4 70 52 Core Hits 91 | 3 21 9 . 3 33 22 Critical Kills 1 | . 1 . . . . . Critical Parts Destroyed . | . . . . . . . Critical Strikes 6 | . 1 . . . 2 3 Burn 3 | . . . . . 2 1 Destroy 1 | . 1 . . . . . Sever 2 | . . . . . . 2 Melee Attacks 18 | . . . . . 4 14 Impact . | . . . . . . . Slashing 18 | . . . . . 4 14 Piercing . | . . . . . . . Sneak Attacks 1 | . . . . . . 1 Combat Hostiles . | . . . . . . . Follow-up Attacks . | . . . . . . . Damage Inflicted 4575 | 88 826 348 . 82 1893 1338 Guns 2173 | 88 760 . . . 723 602 Cannons 1691 | . 42 348 . 80 686 535 Explosions 420 | . . . . . 386 34 Melee 155 | . . . . . . 155 Ramming 2 | . . . . 2 . . Kinetic 629 | 88 541 . . . . . Thermal 2612 | . 285 348 . 80 1353 546 Explosive . | . . . . . . . Electromagnetic 1177 | . . . . . 540 637 Impact . | . . . . . . . Slashing 155 | . . . . . . 155 Piercing . | . . . . . . . Highest Corruption 9 | . . . . . . 9 Average Corruption 8 | . . . . . . 8 Corruption Purged . | . . . . . . . Corruption Blocked . | . . . . . . . Effects 29 | . . . . . . 29 Message Errors 7 | . . . . . . 7 Matter Fused 8 | . . . . . . 8 Heat Flow Errors 3 | . . . . . . 3 Energy Discharges 5 | . . . . . . 5 Data Loss (minor) 4 | . . . . . . 4 Data Loss (major) 1 | . . . . . . 1 Misfires 1 | . . . . . . 1 Overload Shots . | . . . . . . . Overflow Damage 97 | . 2 . . . 54 41 Projectiles 26 | . 2 . . . 8 16 Explosions 46 | . . . . . 46 . Melee 25 | . . . . . . 25 Knockbacks . | . . . . . . . Impact . | . . . . . . . Kinetic . | . . . . . . . Secondary . | . . . . . . . Self-Inflicted Damage 162 | . . . . . 162 . Shots 2 | . . . . . 2 . Rammed . | . . . . . . . Targets Rammed 1 | . . . . 1 . . Kicked 1 | . . . . 1 . . Crushed . | . . . . . . . Highest Temperature 360 | . 216 360 . 84 208 271 Average Temperature 79 | . 59 140 . 49 67 85 Received Heat Transfer 1014 | . 327 39 . . 207 441 Effects 3 | . . 1 . . . 2 Interference 3 | . . 1 . . . 2 Siege Activations . | . . . . . . . Robots Corrupted 1 | . . . . . . 1 Combat Hostiles 1 | . . . . . . 1 Parts Fried 10 | . . . . . 3 7 Impact Corruptions . | . . . . . . . Robots Melted 1 | . . . . . . 1 Combat Hostiles 1 | . . . . . . 1 Parts Melted 5 | . 1 . . . 1 3 Heat Transferred 4927 | . 642 629 . 148 2372 1136 Parts Sabotaged . | . . . . . . . Parts Stolen . | . . . . . . . Parts Stripped . | . . . . . . . Power Chain Reactions 4 | . . . . . 3 1 Missiles Intercepted . | . . . . . . . Alert | -11 -10 -10 -10 -9 -8 -8 ------- Run | Scr Mat Min Exi Min Mat Sto Peak Influence 308 | 10 242 169 . 12 308 247 Initial 104 | . 6 39 . . 4 104 Average 78 | 6 116 75 . 2 73 110 Maximum Alert Level 1 | . 1 . . . 1 1 Low Security (%) 90 | 100 88 100 . 100 84 87 Level 1 9 | . 11 . . . 15 12 Level 2 . | . . . . . . . Level 3 . | . . . . . . . Level 4 . | . . . . . . . Level 5 . | . . . . . . . High Security . | . . . . . . . Max Security . | . . . . . . . Squads Dispatched 6 | . 1 . . . 3 2 Investigation 2 | . . . . . 1 1 Extermination . | . . . . . . . Reinforcement 4 | . 1 . . . 2 1 Assault . | . . . . . . . Garrison . | . . . . . . . Intercept . | . . . . . . . Searches Triggered . | . . . . . . . Construction Impeded 1 | . . . . . . 1 Haulers Reinforced . | . . . . . . . Active Scanning Responses . | . . . . . . . Cargo Convoy Interrupts . | . . . . . . . Stealth | -11 -10 -10 -10 -9 -8 -8 --------- Run | Scr Mat Min Exi Min Mat Sto Distress Signals 5 | . 1 . . . 1 3 Communications Jammed . | . . . . . . . Distress Signals . | . . . . . . . Times Spotted 58 | . 16 7 . . 19 16 Peak Tracking Total 6 | . 6 3 . . 6 5 Tactical Retreats 3 | . 1 . . . . 2 Traps | -11 -10 -10 -10 -9 -8 -8 ------- Run | Scr Mat Min Exi Min Mat Sto Traps Triggered 2 | . . . . . 2 . Indirectly . | . . . . . . . Trap Hack Attempts . | . . . . . . . Triggered . | . . . . . . . Disarmed . | . . . . . . . Reprogrammed . | . . . . . . . Reused . | . . . . . . . Traps Extracted . | . . . . . . . Installed 1 | . . 1 . . . . Triggered . | . . . . . . . Most Traps Carried 5 | . . 5 4 4 3 3 Power Sources Rigged 9 | . . . . . . 9 Exploded 5 | . . . . . . 5 Machines | -11 -10 -10 -10 -9 -8 -8 ---------- Run | Scr Mat Min Exi Min Mat Sto Machines Disabled 2 | . . . . . 2 . Max in Single Turn 2 | . . . . . 2 . Machines Sabotaged . | . . . . . . . Garrisons Compromised . | . . . . . . . Overloaded Fab Kills . | . . . . . . . Hacking | -11 -10 -10 -10 -9 -8 -8 --------- Run | Scr Mat Min Exi Min Mat Sto Machines Accessed 16 | . 2 1 2 . 4 7 Terminals 13 | . 2 1 . . 3 7 Fabricators . | . . . . . . . Repair Stations 1 | . . . . . 1 . Recycling Units . | . . . . . . . Scanalyzers . | . . . . . . . Garrison Access . | . . . . . . . Total Hacks 40 | . 10 6 2 . 11 11 Successful 23 | . 6 3 2 . 5 7 Failed 17 | . 4 3 . . 6 4 Catastrophic 2 | . . . . . 1 1 Database Lockouts . | . . . . . . . Manual 20 | . 7 5 1 . 3 4 Terminals 36 | . 10 6 . . 9 11 Fabricators . | . . . . . . . Repair Stations 2 | . . . . . 2 . Recycling Units . | . . . . . . . Scanalyzers . | . . . . . . . Garrison Access . | . . . . . . . Terminal Hacks 15 | . 3 2 2 . 3 5 Record 1 | . . . 1 . . . Open Door 4 | . . . . . . 4 Emergency Access Points 1 | . 1 . . . . . Terminal Index 1 | . 1 . . . . . Alert Level 1 | . . . . . 1 . Locate Traps 5 | . 1 1 . . 2 1 Zone Layout 1 | . . 1 . . . . EX-Prototype ID Bank 1 | . . . 1 . . . Fabricator Hacks . | . . . . . . . Repair Station Hacks 1 | . . . . . 1 . Refit 1 | . . . . . 1 . Recycling Unit Hacks . | . . . . . . . Scanalyzer . | . . . . . . . Garrison Access Hacks . | . . . . . . . Unauthorized Hacks 7 | . 3 1 . . 1 2 Terminals 7 | . 3 1 . . 1 2 Track 1 | . . 1 . . . . Assimilate 2 | . . . . . 1 1 Botnet 3 | . 2 . . . . 1 Operators 1 | . 1 . . . . . Fabricators . | . . . . . . . Repair Stations . | . . . . . . . Recycling Units . | . . . . . . . Scanalyzers . | . . . . . . . Garrison Access . | . . . . . . . Data Cores Recovered . | . . . . . . . Used . | . . . . . . . Hacking Detections 11 | . 2 1 . . 4 4 Full Trace Events 2 | . . . . . 1 1 Feedback Events . | . . . . . . . Feedback Blocked . | . . . . . . . Robot Schematics Acquired . | . . . . . . . Robots Built . | . . . . . . . Authchips . | . . . . . . . Time . | . . . . . . . Total Robot Build Rating . | . . . . . . . Part Schematics Acquired . | . . . . . . . Parts Built . | . . . . . . . Authchips . | . . . . . . . Time . | . . . . . . . Total Part Build Rating . | . . . . . . . Parts Repaired . | . . . . . . . Time . | . . . . . . . Parts Recycled . | . . . . . . . Recycled Matter . | . . . . . . . Retrieved Matter . | . . . . . . . Retrieved Components . | . . . . . . . Parts Scanalyzed . | . . . . . . . Part Schematics Acquired . | . . . . . . . Parts Damaged . | . . . . . . . Bothacking | -11 -10 -10 -10 -9 -8 -8 ------------ Run | Scr Mat Min Exi Min Mat Sto Used RIF Installer . | . . . . . . . Robots Hacked . | . . . . . . . Non-combat . | . . . . . . . Combat . | . . . . . . . Robot Hacks Applied . | . . . . . . . Relay Couplers Released . | . . . . . . . Fabnet Peak Effective % . | . . . . . . . Robots Rewired . | . . . . . . . Allies Hacked . | . . . . . . . Hacks Repelled . | . . . . . . . Allies | -11 -10 -10 -10 -9 -8 -8 -------- Run | Scr Mat Min Exi Min Mat Sto Total Allies 6 | . . 3 . 2 . 1 Largest Group 5 | . . 3 3 5 5 1 Highest-Rated Group 90 | . . 40 40 90 90 10 Highest-Rated Ally 31 | . . 16 16 31 31 10 Total Orders 4 | . . . . . 4 . STAY 2 | . . . . . 2 . FOLLOW 2 | . . . . . 2 . Ally Attacks 33 | . . . . . 33 . Total Damage 380 | . . . . . 380 . Kills 3 | . . . . . 3 . Allies Corrupted . | . . . . . . . Allies Melted . | . . . . . . . Intel | -11 -10 -10 -10 -9 -8 -8 ------- Run | Scr Mat Min Exi Min Mat Sto Robot Analysis Total . | . . . . . . . Derelict Logs Recovered 2 | . . . . 2 . . Drone Launches . | . . . . . . . Drone Recoveries . | . . . . . . . Exploration | -11 -10 -10 -10 -9 -8 -8 ------------- Run | Scr Mat Min Exi Min Mat Sto Turns Passed 6607 | 47 660 838 1587 751 1344 1380 Spaces Moved 3081 | 21 476 367 633 314 631 639 Core . | . . . . . . . Treads 1054 | . 16 138 633 250 17 . Legs 126 | 6 . . . 64 56 . Wheels 1901 | 15 460 229 . . 558 639 Hover . | . . . . . . . Flight . | . . . . . . . Fastest Speed 95 | 100 95 95 240 190 100 130 Average Speed 173 | 105 98 205 250 229 148 136 Slowest Speed 320 | 120 160 320 320 240 240 145 Overloaded Moves . | . . . . . . . Propulsion Burnouts . | . . . . . . . Robots Hopped . | . . . . . . . Cave-ins Triggered . | . . . . . . . Exploration Rate (%) 53 | 2 55 67 91 71 44 43 Regions Visited 6 Branch Regions 4 Pre-discovered Areas 1 | . . . 1 . . . Known Exits Taken 1 | . . . . . 1 . Unknown Exits Taken 5 | 1 1 1 1 1 . . Scrap Searched 2 | . . . . 2 . . Spaces Dug 27 | . . . . . 8 19 Terrain Destroyed 83 | . . . . . 61 22 Melee 14 | . . . . . 4 10 Projectile 13 | . . . . . 4 9 AOE 56 | . . . . . 53 3 Terrain Rammed . | . . . . . . . Walls Destroyed . | . . . . . . . Machines Disabled . | . . . . . . . Actions | -11 -10 -10 -10 -9 -8 -8 --------- Run | Scr Mat Min Exi Min Mat Sto Total 3918 | 33 579 427 636 339 889 1015 Wait 345 | . 17 21 . 18 66 223 Move 3075 | 20 475 366 632 313 630 639 Hop . | . . . . . . . Pick Up 67 | 1 14 7 2 1 26 16 Fast Attach 26 | 2 3 . . 1 13 7 Attach 18 | 1 6 3 . . 4 4 Detach 2 | . . . . . 2 . Swap 67 | 1 3 11 1 . 28 23 Drop 68 | 2 10 5 1 1 27 22 Fire 221 | 6 51 13 . 4 89 58 Melee 18 | . . . . . 4 14 Ram . | . . . . . . . Kick 1 | . . . . 1 . . Crush . | . . . . . . . Escape Stasis . | . . . . . . . Rewire . | . . . . . . . Trap 10 | . . 1 . . . 9 Miscellaneous . | . . . . . . . Route ------- -11/Scrapyard -10/Materials (discovered 3 exits: [*Mat x2] / *Min) -10/Mines (discovered 2 exits: [*Mat] / *Exi) -10/Exiles (discovered 2 exits: [*Min x2]) -9/Mines -8/Materials -8/Storage History --------- Turn | Location | Event 21 | -11/Scrapyard | Discovered new exit (range 3) 48 | -11/Scrapyard | Entered Materials 74 | -10/Materials | Discovered new exit (range 14) 264 | -10/Materials | Lost 5 parts (1p2n2w) 308 | -10/Materials | Build established: Mutant 395 | -10/Materials | Discovered new exit (range 12) 668 | -10/Materials | Discovered new exit (range 16) 708 | -10/Materials | Entered Mines 937 | -10/Mines | Found a hidden stash of uninstalled traps 1063 | -10/Mines | Assembled infested the area 1080 | -10/Mines | Core integrity fell below 50% 1090 | -10/Mines | Core integrity fell below 20% 1116 | -10/Mines | Discovered new exit (range 9) 1120 | -10/Mines | Lost 4 parts (1p2n1w) 1142 | -10/Mines | Assisted by bots powering up and referring to "LRC-V3" 1216 | -10/Mines | Met 8R-AWN 1533 | -10/Mines | Discovered new exit (range 5) 1546 | -10/Mines | Entered Exiles 1546 | -10/Exiles | Accompanied by 3 allies 1594 | -10/Exiles | Discovered new exit (range 15) 1633 | -10/Exiles | Welcomed by 8R-AWN 1674 | -10/Exiles | Met EX-HEX 1855 | -10/Exiles | Met EX-DEC 1906 | -10/Exiles | Visited The Gauntlet 2188 | -10/Exiles | Learned location of Zion (-7) 2330 | -10/Exiles | Discovered new exit (range 14) 2464 | -10/Exiles | Met EX-BIN 2498 | -10/Exiles | Aligned with FarCom system 2500 | -10/Exiles | Given EX-Vault access code 2558 | -10/Exiles | Opened EX-Vault 2616 | -10/Exiles | Warned to stay clear of 0b10 Research branches 2729 | -10/Exiles | Learned about 8R-AWN's background 2906 | -10/Exiles | Found PSU Rigger 3133 | -10/Exiles | Left Exiles lab with PSU Rigger 3133 | -10/Exiles | Entered Mines 3133 | -9/Mines | Accompanied by 3 allies 3448 | -9/Mines | Learned Materials garrison access intel 3857 | -9/Mines | Discovered new exit (range 9) 3884 | -9/Mines | Entered Materials 3884 | -8/Materials | Accompanied by 5 allies 3884 | -8/Materials | Evolved 4 slots: Utility x4 3885 | -8/Materials | Identified exit to Storage 3886 | -8/Materials | Loaded intel: 1 garrison access location 3891 | -8/Materials | Led the pair of lost Derelicts to an unsafe place 5086 | -8/Materials | Build established: Scavenger-Mutant 5228 | -8/Materials | Entered Storage 5571 | -8/Storage | Build established: Mutant 5877 | -8/Storage | Lost 3 parts (3u) 6608 | -8/Storage | Self-destructed Last Messages --------------- 06511_ Rigged Ion Engine with PSU Rigger. 06520_ Dropped Ion Engine. 06521_ Rigged Ion Engine with PSU Rigger. 06528_ System corrupted: Component data lost. 06541_ Acquired 10 matter. 06555_ System corrupted: Substantial component data lost. 06582_ U-05 Engineer lays Concrete. 06584_ Dropped Lgt. Nuclear Core. 06584_ Rigged Lgt. Nuclear Core with PSU Rigger. 06589_ Acquired 5 matter. 06594_ K-01 Serf cleans the Terminal. 06595_ 3W&S3N|#KCNR0, |YISSIWVD|LIW&F0EA> 06598_ K-01 Serf cleans the Terminal. 06598_ Rigged Lgt. Nuclear Core explodes. 06598_ K-01 Serf destroyed. 06599_ U-05 Engineer lays Concrete. 06602_ K-01 Serf cleans the Terminal. 06602_ G-47 Trooper misfires. 06602_ U-05 Engineer builds a Wall. 06603_ U-05 Engineer builds a Door. Map ----- +----------------------------------------------------+ | ????????????????????????#####T####????###?????? | | ????????????????????????#] " #"#????# #?????? | | ????????????????????????#]]% %%###????# ##????? | | ??????##????????##??????#####%%#??????# T#????? | | ???##########################+#########+####### | | ???# # #?# | | ???# # #?# % | | ???# # """" #?# | | ???# # """" #?# ############+############ | | ???# # """" #?# #??????????# #####??#### | | ???# + """" #?# =#??????????# = #??#!!! | | ???# # #?# #??????????# " !!#??#!!! | | ???# # ### * #############T#####??#### | | ???# # # # =## #?###?????????? | | ??## ############ ]%## """"" #?????????????? | | ??# ########## !]!# """"" #?????????????? | | ??# # """"" #?????????????? | | ??# T T + #?????????????? | | ??# ^ # """"" #?????????????? | | ??# #####+#### # """"" #?????????????? | | ?####+##### ### ## """"" #?????????????? | | # # "T" #?# ## #?????"""?"""?? | | # ]# #?# ####+#########??"""?"""?? | | # # #?# ! # = k #??"""?"""?? | | # """ """ # #?#!% # ! ] #??????????? | | # """ """ # """ #?#k %@ #??????????? | | # """ """ # """ #?# # ! #Y?????????? | | # # """ #?# # #??????????? | | # # ### g##############??????????? | | ?########## ### %g####???###??????????????? | | ?????????## ## #T###??????????????????? | | ??????????# ## g= %+= ]#??????????????????? | | ?????????######### !%= #####??????????????????? | | ?????????##???#### g #??????????????????????? | | ?????????????????# #??????????????????????? | | ?????????????#######/"##??????????????????????? | | ?????????????# ! #??????????????????????? | | ?????????????# = #??????????????????????? | | ???"""???????# *%[ #??????????????????????? | | ???"""???????# ! #??????????????????????? | | ???"""???????# | #??????????????????????? | | ???"""???????# ! #??????????????????????? | | ???"""???????# #??????????????????????? | | ?????????????#! #??????????????????????? | | ?????????????####/######??????????????????????? | | ??????????????? #???????????????????????????? | | ????????????? % ???????????????????????????? | | ????????????### | ???????????????????????????? | | ??????????????# "??????????????????????????? | | ??????????????# "??????????????????????????? | +----------------------------------------------------+ Best States ------------- Heat Dissipation 50 Energy Generation 15 Energy Capacity 250 Matter Stores 300 Matter Capacity 300 Sight Range 16 Robot Scan Range 14 Terrain Scan Range 16 Terrain Scan Density 10 Additional Mass Support 12 Armor Coverage 600 Utility Shielding 33 Evasion (%) 41 Recoil Reduction 1 Offensive Hacking 10 Authchip Count 1 Item Schematics ----------------- None Robot Schematics ------------------ None Fabricated ------------ Nothing Alien Tech Used ----------------- None Achievements -------------- None Challenges ------------ None Game ------ Seed ImprovedResetBeam Manual? 0 Play Time 02:12:26 Cumulative 204.5 hours Start 2022.05.03 @ 17:12:58 End 2022.09.07 @ 20:19:10 Sessions 5 Manual Loads 0 Difficulty Rogue Special Mode None Game No. 70 Rogue 67 Adventurer 0 Explorer 3 Win Type - Total 3 Types 2/0/0/1/0/0/0/0/0 Lore% 45 Gallery% 66 Achievement% 49 Wizard Run 0 Options --------- ASCII 0 Keyboard 0 Movement Numpad Keybinds 0 Fullscreen 2 Font 18/X11 Map View 76x50 Tactical HUD 1 Map Filters NONE Filters NONE Steam 1 RUN: f5f9d56e-43cf-43d6-95ed-0f7cf3c136b4